bitfinex-derivatives/quotes_SOLF0:USTF0_20250709
["timestamp","ask_amount","ask_price","bid_price","bid_amount"]
[1752069861060,4.75492707,153.46,153.39,6.5182]
[1752069861261,4.75492707,153.46,153.39,11.27312707]
[1752069861561,6.517,153.43,153.39,11.27312707]
[1752069861761,4.75492707,153.48,153.41,4.75492707]
[1752069861957,6.5148,153.48,153.43,4.75492707]
[1752069862153,9.32952707,153.5,153.44,6.5161]
[1752069862552,6.5149,153.48,153.44,6.5161]
[1752069862755,9.32952707,153.5,153.43,11.27152707]
[1752069862960,4.75492707,153.49,153.41,12.08732543]
[1752069863160,4.5746,153.5,153.4,4.75492707]
[1752069863462,4.75492707,153.48,153.43,6.5166]
[1752069863661,4.75492707,153.48,153.42,4.75492707]
[1752069864056,4.75492707,153.46,153.4,12.08732543]
[1752069864255,4.75492707,153.42,153.37,12.08732543]
[1752069864658,6.5182,153.4,153.37,6.5192]
[1752069865359,4.75492707,153.42,153.35,12.08732543]
[1752069865952,6.519,153.38,153.35,18.60712543]
[1752069866156,4.75492707,153.42,153.35,12.08732543]
[1752069866664,6.5187,153.39,153.36,6.5193]
[1752069867365,6.5188,153.38,153.36,6.5193]
[1752069867561,6.5188,153.38,153.35,18.60722543]
[1752069868263,6.5197,153.36,153.35,12.08732543]
[1752069868462,4.75492707,153.4,153.35,12.08732543]
[1752069868660,216.50362548,153.46,153.33,12.08732543]
[1752069868861,4.75492707,153.41,153.35,6.5199]
[1752069869765,6.5191,153.38,153.35,6.5199]
[1752069870065,4.75492707,153.41,153.35,6.5199]
[1752069871168,6.5193,153.37,153.34,6.5203]
[1752069871366,4.75492707,153.41,153.33,4.75492707]
[1752069871966,6.5196,153.37,153.34,6.5203]
[1752069872768,6.5197,153.36,153.33,23.45430113]
[1752069873565,6.5197,153.36,153.33,11.27572707]
[1752069873764,6.5194,153.37,153.34,6.5205]
[1752069874165,4.75492707,153.41,153.33,4.75492707]
[1752069874369,6.519,153.38,153.34,6.5202]
[1752069874564,4.75492707,153.41,153.34,6.5202]
[1752069874760,4.75492707,153.41,153.33,16.93350113]
[1752069875068,4.75492707,153.41,153.33,23.45430113]
[1752069875270,4.75492707,153.41,153.33,11.27572707]
[1752069875464,6.5199,153.36,153.33,11.27572707]
[1752069876671,6.5199,153.36,153.33,4.75492707]
[1752069877568,6.5199,153.36,153.33,11.27582707]
[1752069877766,6.5195,153.37,153.33,11.27582707]
[1752069877971,4.75492707,153.4,153.33,11.27582707]
[1752069878363,6.5204,153.35,153.32,14.39317406]
[1752069878671,4.75492707,153.4,153.32,2.2146]
[1752069878870,6.5198,153.36,153.33,6.5207]
[1752069879471,6.5194,153.37,153.33,6.5207]
[1752069879872,4.75492707,153.4,153.33,6.5207]
[1752069880374,4.75492707,153.4,153.32,14.39317406]
[1752069880570,17.4841,153.43,153.32,14.39317406]
[1752069880571,4.75492707,153.38,153.32,2.2146]
[1752069880777,4.75492707,153.38,153.31,4.75492707]
[1752069880972,4.75492707,153.38,153.31,11.27662707]
[1752069881169,6.5214,153.32,153.29,16.93350113]
[1752069881568,6.5214,153.32,153.29,23.45590113]
[1752069882074,4.75492707,153.36,153.29,4.75492707]
[1752069882671,6.5212,153.33,153.3,6.5219]
[1752069883069,13.0365,153.4,153.29,4.75492707]
[1752069883275,6.5203,153.35,153.32,6.5211]
[1752069883469,4.75492707,153.37,153.31,4.75492707]
[1752069883872,4.75492707,153.37,153.28,1.0]
[1752069884170,13.0369,153.39,153.27,18.20065667]
[1752069884373,6.5216,153.32,153.29,6.5224]
[1752069885074,6.5219,153.31,153.28,6.5229]
[1752069885275,6.5219,153.31,153.27,4.75492707]
[1752069885571,6.5215,153.32,153.28,6.5227]
[1752069885969,6.5215,153.32,153.27,4.75492707]
[1752069886270,6.5219,153.31,153.28,6.5228]
[1752069886672,6.5219,153.31,153.28,18.67675536]
[1752069886977,6.5215,153.32,153.29,6.5226]
[1752069887276,4.75492707,153.35,153.27,16.90888243]
[1752069887477,4.75492707,153.35,153.27,4.75492707]
[1752069888974,4.75492707,153.34,153.28,6.5228]
[1752069889576,6.5219,153.31,153.28,6.5228]
[1752069890380,6.5219,153.31,153.27,6.5233]
[1752069890571,13.0379,153.38,153.26,4.75492707]
[1752069890774,4.75492707,153.33,153.26,4.75492707]
[1752069890976,4.75492707,153.33,153.27,6.5234]
[1752069891573,6.5221,153.31,153.27,6.5234]
[1752069892074,6.5217,153.32,153.28,6.523]
[1752069892273,4.75492707,153.33,153.28,6.523]
[1752069892471,4.75492707,153.34,153.28,6.523]
[1752069892676,6.5217,153.32,153.28,6.523]
[1752069893576,4.75492707,153.34,153.28,6.523]
[1752069894778,6.522,153.31,153.28,6.523]
[1752069895083,4.75492707,153.34,153.29,6.5226]
[1752069895280,6.5211,153.33,153.29,4.75492707]
[1752069895476,4.75492707,153.36,153.29,4.75492707]
[1752069895779,6.5214,153.32,153.29,11.27732707]
[1752069896078,6.5214,153.32,153.29,6.5224]
[1752069897280,6.5214,153.32,153.28,11.27782707]
[1752069897881,6.5219,153.31,153.28,6.5229]
[1752069899784,4.75492707,153.34,153.26,12.15395536]
[1752069899985,4.75492707,153.32,153.26,12.15395536]
[1752069900383,4.75492707,153.32,153.26,18.67775536]
[1752069900677,4.75492707,153.32,153.26,12.15395536]
[1752069900882,6.523,153.29,153.26,6.5239]
[1752069901079,4.75492707,153.3,153.24,12.15395536]
[1752069901586,4.75492707,153.31,153.24,12.15395536]
[1752069901786,4.75492707,153.31,153.23,9.32622707]
[1752069901787,4.75492707,153.31,153.25,4.75492707]
[1752069901980,4.75492707,153.33,153.27,6.5233]
[1752069902179,4.75492707,153.33,153.25,4.75492707]
[1752069902590,6.522,153.31,153.27,6.5232]
[1752069902882,4.5078,153.37,153.27,4.75492707]
[1752069903082,4.5078,153.37,153.24,12.15395536]
[1752069903289,4.5078,153.37,153.25,12.15395536]
[1752069903584,6.5203,153.35,153.31,11.27652707]
[1752069904682,6.5205,153.34,153.31,11.27652707]
[1752069904986,6.5205,153.34,153.31,6.5216]
[1752069905382,4.5078,153.37,153.31,4.75492707]
[1752069905782,4.75492707,153.36,153.3,6.522]
[1752069906185,4.75492707,153.36,153.29,4.75492707]
[1752069906384,6.5208,153.34,153.29,4.75492707]
[1752069906884,6.5208,153.34,153.3,6.5218]
[1752069907184,4.75492707,153.36,153.3,6.5218]
[1752069907383,4.75492707,153.34,153.28,6.5228]
[1752069907883,6.522,153.31,153.28,6.5228]
[1752069908185,4.75492707,153.34,153.28,6.5228]
[1752069908885,6.522,153.31,153.28,6.5228]
[1752069909885,6.5224,153.3,153.27,6.5233]
[1752069910288,6.522,153.31,153.28,6.5231]
[1752069910787,4.75492707,153.34,153.28,4.75492707]
[1752069911690,6.5216,153.32,153.29,6.5224]
[1752069911880,4.75492707,153.34,153.27,12.15395536]
[1752069912190,6.5221,153.31,153.26,16.90888243]
[1752069912386,6.5221,153.31,153.27,4.75492707]
[1752069913185,4.75492707,153.36,153.26,12.15395536]
[1752069913684,4.75492707,153.29,153.23,6.5251]
[1752069913884,4.75492707,153.3,153.23,4.75492707]
[1752069914087,4.75492707,153.3,153.23,12.15395536]
[1752069914291,4.75492707,153.32,153.24,4.75492707]
[1752069914590,4.75492707,153.32,153.24,16.90888243]
[1752069914784,6.5219,153.31,153.26,6.5236]
[1752069914984,4.5078,153.37,153.26,6.5236]
[1752069914985,4.5078,153.37,153.26,16.90888243]
[1752069915186,4.75492707,153.35,153.27,12.15395536]
[1752069915381,9.26272707,153.37,153.3,4.75492707]
[1752069915585,4.75492707,153.38,153.3,16.90888243]
[1752069915786,8.27446006,153.37,153.32,4.75492707]
[1752069915985,4.01582868,153.36,153.32,11.27582707]
[1752069916187,4.75492707,153.39,153.32,11.27582707]
[1752069916387,13.03019592,153.38,153.32,4.75492707]
[1752069916589,14.79446885,153.37,153.31,4.75492707]
[1752069916790,6.5192,153.37,153.31,4.75492707]
[1752069916985,6.5189,153.38,153.31,4.75492707]
[1752069917186,4.75492707,153.41,153.35,4.75492707]
[1752069917391,8.27657491,153.4,153.35,4.75492707]
[1752069917587,8.27657491,153.39,153.35,11.27472707]
[1752069917792,8.27657491,153.38,153.35,11.27472707]
[1752069917986,6.5183,153.4,153.35,11.27472707]
[1752069918795,6.5176,153.41,153.36,6.5196]
[1752069919486,6.518,153.4,153.36,6.5196]
[1752069919892,6.518,153.4,153.35,11.27492707]
[1752069920797,4.75492707,153.4,153.33,4.75492707]
[1752069921294,6.5191,153.38,153.33,11.27552707]
[1752069921691,4.75492707,153.4,153.33,4.75492707]
[1752069922090,4.75492707,153.44,153.33,4.75492707]
[1752069922292,4.75492707,153.4,153.34,6.5202]
[1752069922498,13.27002548,153.45,153.33,4.75492707]
[1752069922694,4.75492707,153.41,153.33,4.75492707]
[1752069922901,13.27002548,153.45,153.35,4.75492707]
[1752069923099,13.27002548,153.45,153.32,4.4868]
[1752069923100,6.89122707,153.45,153.37,4.75492707]
[1752069923393,6.5164,153.44,153.4,6.5179]
[1752069924101,6.5164,153.44,153.39,11.27312707]
[1752069924602,6.5164,153.44,153.39,4.75492707]
[1752069924798,141.71285723,153.46,153.41,4.75492707]
[1752069925002,135.19735723,153.46,153.41,4.75492707]
[1752069925411,4.75492707,153.48,153.41,4.75492707]
[1752069925703,8.26210463,153.47,153.41,4.75492707]
[1752069925896,6.5157,153.46,153.42,4.75492707]
[1752069926094,9.33142707,153.5,153.42,4.75492707]
[1752069926403,4.01319295,153.49,153.44,4.75492707]
[1752069926604,4.5765,153.5,153.44,4.75492707]
[1752069926806,4.01295975,153.49,153.44,4.75492707]
[1752069927002,4.5765,153.5,153.44,4.75492707]
[1752069927602,4.5765,153.5,153.39,2.2068]
[1752069927806,4.5765,153.5,153.43,4.75492707]
[1752069928014,4.5765,153.5,153.39,2.2068]
[1752069928015,6.5161,153.45,153.41,11.27232707]
[1752069929005,4.75492707,153.49,153.42,6.5169]
[1752069929606,4.75492707,153.49,153.43,11.27162707]
[1752069930208,6.5152,153.47,153.43,11.27162707]
[1752069930697,4.5765,153.5,153.43,4.75492707]
[1752069930904,563.04,153.56,153.45,4.75492707]
[1752069931105,4.75492707,153.52,153.45,4.75492707]
[1752069931304,6.5138,153.5,153.46,6.5152]
[1752069931503,4.75492707,153.53,153.47,4.75492707]
[1752069932008,6.5134,153.51,153.47,11.26962707]
[1752069932208,6.5134,153.51,153.47,4.75492707]
[1752069932607,6.5134,153.51,153.47,11.26972707]
[1752069933110,4.75492707,153.53,153.47,4.75492707]
[1752069933509,6.5135,153.51,153.47,4.75492707]
[1752069933707,9.18802707,153.55,153.48,6.5145]
[1752069934011,4.4331,153.55,153.49,4.75492707]
[1752069934311,6.5126,153.53,153.49,11.26892707]
[1752069934607,4.4331,153.55,153.49,11.26892707]
[1752069935109,4.4331,153.55,153.49,4.75492707]
[1752069935312,4.4331,153.55,153.48,6.5144]
[1752069935609,6.5131,153.52,153.49,4.75492707]
[1752069936310,4.4331,153.55,153.49,11.26892707]
[1752069937003,6.5127,153.53,153.49,11.26892707]
[1752069937199,6.5127,153.53,153.45,4.4971]
[1752069937200,136.5947121,153.58,153.51,4.75492707]
[1752069937505,9.38622707,153.6,153.45,202.7771]
[1752069937706,9.38622707,153.6,153.53,4.75492707]
[1752069938310,6.5113,153.56,153.53,4.75492707]
[1752069938711,6.5119,153.55,153.53,4.75492707]
[1752069938913,4.6313,153.6,153.53,4.75492707]
[1752069939212,6.5114,153.56,153.53,4.75492707]
[1752069940412,6.5109,153.57,153.53,11.26732707]
[1752069940810,6.5112,153.56,153.53,4.75492707]
[1752069943409,4.75492707,153.62,153.55,4.75492707]
[1752069943811,6.5111,153.57,153.55,4.75492707]
[1752069946718,6.5105,153.58,153.55,11.26642707]
[1752069946918,4.75492707,153.61,153.55,4.75492707]
[1752069947211,6.5103,153.59,153.55,4.75492707]
[1752069947416,4.75492707,153.62,153.55,11.26622707]
[1752069947615,4.75492707,153.62,153.55,6.5113]
[1752069947818,6.5105,153.58,153.55,11.26622707]
[1752069948016,4.75492707,153.62,153.55,11.26622707]
[1752069948420,6.5102,153.59,153.56,6.5111]
[1752069948617,2.274,153.64,153.55,4.75492707]
[1752069948817,9.13506134,153.63,153.55,4.75492707]
[1752069949013,2.274,153.64,153.57,4.75492707]
[1752069949517,6.5097,153.6,153.57,4.75492707]
[1752069949923,4.75492707,153.63,153.57,4.75492707]
[1752069950525,6.51,153.59,153.57,4.75492707]
[1752069950717,4.75492707,153.63,153.57,4.75492707]
[1752069950920,4.75492707,153.63,153.57,11.26542707]
[1752069951120,7.02892707,153.64,153.57,4.75492707]
[1752069951616,6.5093,153.61,153.58,6.5101]
[1752069952215,6.5088,153.62,153.59,6.5098]
[1752069952721,2.2335,153.65,153.59,4.75492707]
[1752069952921,4.75492707,153.66,153.59,4.75492707]
[1752069953122,4.37551126,153.65,153.59,4.75492707]
[1752069953323,6.5081,153.64,153.6,6.5092]
[1752069953520,4.75492707,153.66,153.6,6.5092]
[1752069953718,4.37514127,153.65,153.6,4.75492707]
[1752069953922,6.5086,153.62,153.6,4.75492707]
[1752069954718,6.5084,153.63,153.6,11.26432707]
[1752069955118,4.75492707,153.66,153.6,4.75492707]
[1752069955318,6.5088,153.62,153.6,4.75492707]
[1752069956314,6.5084,153.63,153.6,4.75492707]
[1752069956523,4.5243,153.69,153.6,4.75492707]
[1752069956715,6.5084,153.63,153.6,4.75492707]
[1752069957024,4.75492707,153.66,153.6,4.75492707]
[1752069957324,10.89761028,153.65,153.62,4.75492707]
[1752069957520,6.5076,153.65,153.63,4.75492707]
[1752069957715,9.27922707,153.69,153.61,4.75492707]
[1752069957915,6.5076,153.65,153.61,4.75492707]
[1752069958122,9.27922707,153.69,153.61,4.75492707]
[1752069958317,9.10303065,153.68,153.61,4.75492707]
[1752069958516,6.5074,153.65,153.61,4.75492707]
[1752069958717,6.5074,153.65,153.61,11.26372707]
[1752069958920,6.5071,153.66,153.61,4.75492707]
[1752069959319,6.5071,153.66,153.63,4.75492707]
[1752069959521,6.5067,153.67,153.63,4.75492707]
[1752069959716,143.09885828,153.75,153.6,4.75492707]
[1752069959926,9.14642393,153.74,153.61,4.6575]
[1752069960219,4.75492707,153.71,153.64,4.75492707]
[1752069960622,4.75421369,153.7,153.61,4.6575]
[1752069960816,4.75492707,153.71,153.64,11.26272707]
[1752069961020,4.75395035,153.7,153.64,11.26272707]
[1752069961328,4.75395035,153.69,153.64,4.75492707]
[1752069961526,4.75492707,153.71,153.64,4.75492707]
[1752069961724,4.6968969,153.7,153.63,4.75492707]
[1752069961920,6.5074,153.65,153.63,4.75492707]
[1752069962521,4.75492707,153.69,153.61,9.41242707]
[1752069962729,4.69911007,153.68,153.61,4.75492707]
[1752069962925,4.69911007,153.67,153.61,4.75492707]
[1752069963122,6.5067,153.67,153.63,11.26292707]
[1752069963323,4.2922,153.7,153.63,4.75492707]
[1752069963525,4.70123031,153.69,153.65,4.75492707]
[1752069963726,4.70123031,153.68,153.65,4.75492707]
[1752069963925,4.75492707,153.71,153.65,4.75492707]
[1752069964121,4.70203477,153.7,153.65,4.75492707]
[1752069964428,4.70203477,153.69,153.65,4.75492707]
[1752069964628,4.70203477,153.68,153.65,4.75492707]
[1752069964829,6.5064,153.68,153.65,6.5073]
[1752069965029,9.33642707,153.74,153.66,4.75492707]
[1752069965234,6.5052,153.71,153.66,4.75492707]
[1752069965431,4.70524365,153.7,153.66,11.26162707]
[1752069965635,4.70524365,153.69,153.66,4.75492707]
[1752069965835,6.5052,153.71,153.66,4.75492707]
[1752069966037,4.70407959,153.7,153.67,6.5065]
[1752069966231,4.70407959,153.69,153.67,6.5065]
[1752069966435,6.5053,153.7,153.66,4.75492707]
[1752069966636,4.70515828,153.69,153.66,11.26172707]
[1752069966840,9.33642707,153.74,153.66,11.26172707]
[1752069967133,6.5055,153.7,153.66,11.26172707]
[1752069967335,4.70515828,153.69,153.66,11.26172707]
[1752069967538,4.70515828,153.68,153.66,11.26172707]
[1752069967838,6.505,153.71,153.67,6.5065]
[1752069968033,9.33642707,153.74,153.66,4.75492707]
[1752069968231,12.69410464,153.73,153.66,4.75492707]
[1752069968432,6.5051,153.71,153.67,6.5062]
[1752069968838,6.5045,153.72,153.68,11.26072707]
[1752069969539,6.5051,153.71,153.68,4.75492707]
[1752069970536,6.5046,153.72,153.68,11.26092707]
[1752069970736,6.5046,153.72,153.68,4.75492707]
[1752069971141,4.57099346,153.71,153.68,11.26082707]
[1752069971338,6.5046,153.72,153.69,4.75492707]
[1752069971538,11.07475061,153.71,153.69,4.75492707]
[1752069971739,6.505,153.71,153.69,4.75492707]
[1752069971938,4.75492707,153.76,153.69,4.75492707]
[1752069972239,6.5047,153.72,153.69,4.75492707]
[1752069972439,4.56975063,153.71,153.64,1.0]
[1752069972637,9.3246777,153.7,153.61,5.617]
[1752069972840,4.56975063,153.69,153.62,6.5084]
[1752069973042,4.75492707,153.66,153.59,566.85492707]
[1752069973243,4.56975063,153.65,153.59,562.1]
[1752069973433,4.75492707,153.66,153.59,566.85492707]
[1752069973633,4.75492707,153.66,153.59,562.1]
[1752069973634,4.44915706,153.65,153.59,562.1]
[1752069973839,4.75492707,153.66,153.59,562.1]
[1752069974037,4.44874344,153.65,153.59,566.85492707]
[1752069974238,4.75492707,153.67,153.59,566.85492707]
[1752069974435,4.45171954,153.66,153.59,566.85492707]
[1752069974642,6.508,153.64,153.59,566.85492707]
[1752069974942,4.75492707,153.67,153.59,566.85492707]
[1752069975146,10.95931115,153.66,153.61,6.5088]
[1752069975337,4.75492707,153.67,153.61,6.5088]
[1752069975535,4.38982637,153.66,153.61,6.5088]
[1752069975741,4.75492707,153.67,153.59,566.85492707]
[1752069975742,6.5078,153.64,153.59,562.1]
[1752069975943,4.75492707,153.65,153.55,4.7084]
[1752069976147,6.5085,153.63,153.58,6.51]
[1752069976644,6.5085,153.63,153.57,4.75492707]
[1752069976946,6.5085,153.63,153.59,6.5096]
[1752069977746,6.5085,153.63,153.55,4.7084]
[1752069977747,6.5087,153.62,153.58,6.5103]
[1752069978349,11.26322707,153.63,153.56,4.75492707]
[1752069979046,11.26322707,153.63,153.59,6.5096]
[1752069979748,6.5083,153.63,153.59,6.5096]
[1752069980045,6.5087,153.62,153.59,6.5096]
[1752069980845,6.5087,153.62,153.58,6.5101]
[1752069981548,4.75492707,153.64,153.57,6.5105]
[1752069982250,6.5093,153.61,153.58,6.5102]
[1752069982550,6.5093,153.61,153.56,4.75492707]
[1752069982753,6.5088,153.62,153.58,4.75492707]
[1752069983352,6.5092,153.61,153.58,6.5102]
[1752069983550,4.75492707,153.65,153.57,4.75492707]
[1752069983850,8.8996355,153.64,153.57,11.26552707]
[1752069984050,4.521,153.64,153.57,11.26552707]
[1752069984453,6.5095,153.61,153.57,11.26552707]
[1752069984754,6.5095,153.61,153.58,6.5102]
[1752069984947,6.5095,153.61,153.57,4.75492707]
[1752069985154,6.5096,153.6,153.57,4.75492707]
[1752069985548,6.5096,153.6,153.56,6.5111]
[1752069985748,6.5096,153.6,153.53,4.75492707]
[1752069985749,4.75492707,153.6,153.53,4.75492707]
[1752069985954,4.521,153.64,153.52,561.9]
[1752069986258,4.75492707,153.59,153.52,561.9]
[1752069986446,4.75492707,153.59,153.53,6.5121]
[1752069986851,6.511,153.57,153.53,6.5121]
[1752069987152,4.75492707,153.59,153.52,568.4128]
[1752069987354,4.75492707,153.59,153.52,573.16772707]
[1752069987552,6.5115,153.56,153.52,11.26772707]
[1752069987849,4.75492707,153.59,153.49,288.28162016]
[1752069988052,4.75492707,153.6,153.51,4.75492707]
[1752069988247,4.75492707,153.6,153.53,6.5123]
[1752069988654,6.5112,153.56,153.53,6.5123]
[1752069991058,6.5109,153.57,153.53,6.5123]
[1752069991356,4.75492707,153.61,153.53,6.5123]
[1752069991556,4.75492707,153.61,153.52,11.26762707]
[1752069991758,4.75492707,153.59,153.52,6.5127]
[1752069991958,4.75492707,153.57,153.47,1.0]
[1752069992153,4.75492707,153.57,153.5,6.5135]
[1752069992349,6.5123,153.54,153.5,6.5135]
[1752069992550,4.75492707,153.57,153.49,4.75492707]
[1752069992751,4.75492707,153.55,153.49,4.75492707]
[1752069992957,6.514,153.5,153.46,10.12262707]
[1752069993153,6.514,153.5,153.46,9.12262707]
[1752069993958,6.5135,153.51,153.48,4.75492707]
[1752069994162,2.3333,153.55,153.48,4.75492707]
[1752069994362,2.3333,153.55,153.5,4.75492707]
[1752069994661,6.5128,153.53,153.5,4.75492707]
[1752069996563,2.1694,153.56,153.5,4.75492707]
[1752069996765,4.75492707,153.57,153.5,4.75492707]
[1752069997164,6.5116,153.55,153.52,4.75492707]
[1752069997366,4.75492707,153.59,153.52,4.75492707]
[1752069998060,4.75492707,153.57,153.5,11.26842707]
[1752069998666,6.5123,153.54,153.5,11.26842707]
[1752069998960,6.5123,153.54,153.51,6.5132]
[1752069999466,6.97712707,153.6,153.52,4.75492707]
[1752069999671,2.2222,153.6,153.54,4.75492707]
[1752070000165,6.511,153.57,153.54,11.26682707]
[1752070000372,2.2222,153.6,153.56,4.75492707]
[1752070000570,6.5102,153.59,153.56,4.75492707]
[1752070000771,2.2401,153.61,153.56,4.75492707]
[1752070001666,2.2401,153.61,153.52,4.75492707]
[1752070001864,4.75492707,153.6,153.53,4.75492707]
[1752070002265,6.96332707,153.6,153.53,4.75492707]
[1752070002470,6.5119,153.55,153.53,4.75492707]
[1752070002873,6.96332707,153.6,153.53,4.75492707]
[1752070003067,6.5118,153.55,153.53,4.75492707]
[1752070003272,6.96332707,153.6,153.53,4.75492707]
[1752070003774,6.5118,153.55,153.53,4.75492707]
[1752070004376,4.75492707,153.58,153.47,1.0]
[1752070004570,4.75492707,153.58,153.5,4.75492707]
[1752070005172,6.5127,153.53,153.5,11.26842707]
[1752070005770,6.513,153.52,153.5,11.26842707]
[1752070005971,4.75492707,153.59,153.5,4.75492707]
[1752070006176,6.5117,153.55,153.52,4.75492707]
[1752070006875,6.5121,153.54,153.52,4.75492707]
[1752070008776,6.5118,153.55,153.52,4.75492707]
[1752070009771,6.5113,153.56,153.52,11.26772707]
[1752070009972,4.75492707,153.58,153.52,11.26772707]
[1752070010877,6.5115,153.56,153.52,11.26772707]
[1752070012279,6.5109,153.57,153.52,4.75492707]
[1752070012573,4.75492707,153.64,153.56,4.75492707]
[1752070012777,141.17140369,153.66,153.58,4.75492707]
[1752070012979,138.89630369,153.66,153.58,11.26502707]
[1752070013479,138.89630369,153.66,153.58,4.75492707]
[1752070013780,4.75492707,153.64,153.53,4.6055]
[1752070013977,6.5101,153.59,153.56,4.75492707]
[1752070014976,6.5101,153.59,153.56,11.26592707]
[1752070015279,4.75492707,153.65,153.58,4.75492707]
[1752070015679,6.5089,153.62,153.58,4.75492707]
[1752070017271,6.5089,153.62,153.58,11.26502707]
[1752070017980,6.5092,153.61,153.58,4.75492707]
[1752070018579,6.5092,153.61,153.58,11.26522707]
[1752070021279,4.75492707,153.65,153.58,4.75492707]
[1752070021481,134.14137662,153.66,153.58,4.75492707]
[1752070021482,131.98257662,153.66,153.64,4.75492707]
[1752070021781,138.48957662,153.66,153.64,4.75492707]
[1752070022084,131.98257662,153.66,153.64,4.75492707]
[1752070022386,6.5074,153.65,153.62,4.75492707]
[1752070022582,131.98257662,153.66,153.62,4.75492707]
[1752070022777,131.98257662,153.66,153.63,4.75492707]
[1752070023482,6.5077,153.65,153.63,4.75492707]
[1752070023683,131.98257662,153.66,153.63,4.75492707]
[1752070023879,131.98257662,153.66,153.61,4.75492707]
[1752070024588,6.5076,153.65,153.61,11.26392707]
[1752070024981,131.98257662,153.66,153.61,11.26392707]
[1752070025181,6.5078,153.64,153.61,4.75492707]
[1752070026082,4.75492707,153.71,153.63,4.75492707]
[1752070026281,4.75492707,153.69,153.63,4.75492707]
[1752070026484,6.508,153.64,153.61,4.75492707]
[1752070026788,4.75492707,153.69,153.61,4.75492707]
[1752070027188,4.75492707,153.69,153.6,1.0]
[1752070027189,4.75492707,153.69,153.63,4.75492707]
[1752070027596,6.5072,153.66,153.63,4.75492707]
[1752070028384,4.75492707,153.7,153.63,4.75492707]
[1752070029584,6.5076,153.65,153.63,4.75492707]
[1752070030191,6.5078,153.64,153.63,4.75492707]
[1752070030896,6.5076,153.65,153.63,4.75492707]
[1752070033302,6.5082,153.63,153.6,1.0]
[1752070033602,4.75492707,153.68,153.6,12.26412707]
[1752070033904,4.75492707,153.69,153.62,4.75492707]
[1752070034407,6.5073,153.66,153.62,4.75492707]
[1752070034798,6.5073,153.66,153.63,6.5082]
[1752070035302,6.507,153.66,153.63,6.5082]
[1752070036103,6.507,153.66,153.62,11.26342707]
[1752070036995,4.75492707,153.71,153.62,11.26342707]
[1752070037195,17.6848,153.73,153.62,11.26342707]
[1752070037400,4.75492707,153.7,153.62,6.5085]
[1752070037600,6.5072,153.66,153.63,4.75492707]
[1752070038006,6.5072,153.66,153.63,11.26302707]
[1752070038608,6.5072,153.66,153.63,4.75492707]
[1752070039108,6.5072,153.66,153.63,11.26302707]
[1752070039502,4.75492707,153.7,153.63,11.26302707]
[1752070040602,9.43132707,153.73,153.65,4.75492707]
[1752070040799,6.5059,153.69,153.65,4.75492707]
[1752070041302,9.43132707,153.73,153.65,11.26192707]
[1752070041702,4.6764,153.73,153.65,11.26192707]
[1752070041903,4.75492707,153.72,153.65,11.26192707]
[1752070042811,6.5059,153.69,153.65,11.26192707]
[1752070043009,6.5059,153.69,153.66,6.5069]
[1752070043207,6.5059,153.69,153.67,4.75492707]
[1752070043403,6.5054,153.7,153.67,4.75492707]
[1752070044311,6.5054,153.7,153.67,11.26142707]
[1752070044610,6.5057,153.69,153.66,4.75492707]
[1752070045004,6.5057,153.69,153.66,11.26182707]
[1752070045505,4.6764,153.73,153.66,11.26182707]
[1752070046506,4.6764,153.73,153.67,6.5064]
[1752070046713,4.6764,153.73,153.66,4.75492707]
[1752070047008,6.5056,153.7,153.66,4.75492707]
[1752070047212,6.5056,153.7,153.67,4.75492707]
[1752070048311,6.5056,153.7,153.67,11.26122707]
[1752070048611,4.75492707,153.75,153.67,4.75492707]
[1752070049410,17.2934,153.77,153.69,4.75492707]
[1752070049605,22.04832707,153.77,153.69,4.75492707]
[1752070050008,4.2883,153.77,153.69,4.75492707]
[1752070050208,4.2883,153.77,153.71,4.75492707]
[1752070050513,6.5038,153.74,153.71,4.75492707]
[1752070050815,0.04523663,153.76,153.71,4.75492707]
[1752070051407,4.75492707,153.74,153.66,4.75492707]
[1752070051611,4.75492707,153.72,153.66,4.75492707]
[1752070051814,6.5064,153.68,153.66,4.75492707]
[1752070052502,4.2883,153.77,153.66,4.75492707]
[1752070052706,4.75492707,153.74,153.66,4.75492707]
[1752070053105,6.5059,153.69,153.66,11.26162707]
[1752070053820,4.75492707,153.74,153.66,4.75492707]
[1752070054111,4.75492707,153.73,153.66,4.75492707]
[1752070054316,6.5059,153.69,153.66,11.26182707]
[1752070055913,6.5054,153.7,153.66,11.26182707]